bitfinex/quotes_ETHUSD_20250924
["timestamp","ask_amount","ask_price","bid_price","bid_amount"]
[1758725507826,31.13980193,4205.0,4204.9,31.08482137]
[1758725508007,31.13980193,4205.0,4204.9,26.25082137]
[1758725508204,31.13980193,4205.0,4204.9,30.29282137]
[1758725509804,31.13980193,4205.0,4204.9,18.07882137]
[1758725510014,31.13980193,4205.0,4204.9,8.48398533]
[1758725510226,31.13980193,4205.0,4204.9,7.35917784]
[1758725510428,31.13980193,4205.0,4204.4,9.59483604]
[1758725510583,31.13980193,4205.0,4204.5,12.211]
[1758725510782,0.6913,4204.9,4204.6,6.02]
[1758725510997,0.6913,4204.9,4204.7,2.69468645]
[1758725510998,0.4642,4204.8,4204.7,2.69468645]
[1758725511226,0.6913,4204.8,4204.7,6.73468645]
[1758725511391,31.13980193,4205.0,4204.7,6.02]
[1758725511592,31.13980193,4205.0,4204.9,2.37817784]
[1758725511898,31.13980193,4205.0,4204.9,10.96146354]
[1758725512228,31.13980193,4205.0,4204.9,11.75346354]
[1758725512722,30.42578143,4205.0,4204.9,11.75346354]
[1758725512879,29.71176093,4205.0,4204.9,11.75346354]
[1758725513332,28.99774043,4205.0,4204.9,11.75346354]
[1758725513628,28.28371993,4205.0,4204.9,11.75346354]
[1758725513983,27.56969943,4205.0,4204.9,7.03616354]
[1758725514180,27.56969943,4205.0,4204.9,7.28176354]
[1758725514424,27.56969943,4205.0,4204.9,19.92346354]
[1758725515122,26.85567893,4205.0,4204.9,19.92346354]
[1758725515324,26.85567893,4205.0,4204.9,19.48976354]
[1758725515933,26.85567893,4205.0,4204.9,7.28176354]
[1758725516136,26.85567893,4205.0,4204.9,19.49076354]
[1758725516352,26.85567893,4205.0,4204.9,19.24516354]
[1758725516562,26.85567893,4205.0,4204.9,6.24416354]
[1758725516763,26.85567893,4205.0,4204.9,5.49657784]
[1758725516928,26.85567893,4205.0,4204.9,17.70457784]
[1758725517635,27.31987893,4205.0,4204.9,17.70457784]
[1758725517841,26.85567893,4205.0,4204.9,11.51457784]
[1758725518215,26.85567893,4205.0,4204.9,9.1364]
[1758725518414,26.85567893,4205.0,4204.9,7.02911784]
[1758725518806,26.85567893,4205.0,4204.9,19.23811784]
[1758725519005,27.31987893,4205.0,4204.9,0.1184]
[1758725519206,27.54697893,4205.0,4204.9,6.1384]
[1758725519841,0.02,4205.9,4205.0,3.792]
[1758725520006,0.02,4205.9,4205.8,2.37766893]
[1758725520228,0.02,4205.9,4205.8,27.74690497]
[1758725520429,0.02,4205.9,4205.8,27.99240497]
[1758725520622,0.02,4205.9,4205.8,18.64316893]
[1758725520826,0.02,4205.9,4205.8,19.07416893]
[1758725521511,0.02,4205.9,4205.8,18.64316893]
[1758725521707,0.02,4205.9,4205.8,19.07416893]
[1758725521950,0.02,4205.9,4205.8,6.41516893]
[1758725522117,0.02,4205.9,4205.8,18.64316893]
[1758725522311,0.02,4205.9,4205.8,19.07416893]
[1758725523118,0.02,4206.9,4206.8,2.37710373]
[1758725523314,0.02,4206.9,4206.8,8.43315463]
[1758725523513,0.02,4206.9,4206.8,12.88560373]
[1758725523729,0.02,4206.9,4206.8,12.57188825]
[1758725524052,0.02,4206.9,4206.8,13.05968519]
[1758725524252,0.02,4206.9,4206.8,13.49068519]
[1758725524434,0.02,4206.9,4206.8,13.05968519]
[1758725525354,0.02,4206.9,4206.8,12.81418519]
[1758725525914,0.02,4206.9,4206.8,7.54579694]
[1758725526130,0.6807,4206.9,4206.8,6.52579694]
[1758725526331,0.02,4206.9,4206.8,6.52579694]
[1758725526532,0.02,4206.9,4206.8,9.14840067]
[1758725527054,0.02,4206.9,4206.8,8.90290067]
[1758725527261,0.02,4206.9,4206.8,12.71279694]
[1758725527843,0.02,4206.9,4206.8,15.88190067]
[1758725528243,0.02,4206.9,4206.8,18.88190067]
[1758725528940,0.02,4206.9,4206.8,18.39410373]
[1758725529163,0.02,4206.9,4206.8,6.16910373]
[1758725529366,0.02,4206.9,4206.8,5.37710373]
[1758725529660,0.02,4206.9,4206.8,17.60210373]
[1758725529958,0.02,4206.9,4206.8,17.72050373]
[1758725530160,0.02,4206.9,4206.8,17.96600373]
[1758725530370,0.02,4206.9,4206.8,19.23746999]
[1758725530670,0.02,4206.9,4206.8,19.66846999]
[1758725531017,0.02,4206.9,4206.8,19.23746999]
[1758725531458,0.02,4206.9,4206.8,18.99196999]
[1758725532066,0.02,4206.9,4206.8,19.22356999]
[1758725532279,0.0192,4206.9,4206.8,19.22356999]
[1758725532827,0.0192,4206.9,4206.8,19.10516999]
[1758725533188,0.0192,4206.9,4206.8,18.87356999]
[1758725533322,0.0192,4206.9,4206.8,19.10516999]
[1758725533528,0.07234259,4208.4,4207.2,0.792]
[1758725533760,0.07234259,4208.4,4207.4,0.792]
[1758725533967,0.07234259,4208.4,4208.0,2.37640874]
[1758725534158,0.07234259,4208.4,4208.1,6.034]
[1758725534632,0.07234259,4208.4,4208.1,8.41034556]
[1758725534825,0.07234259,4208.4,4208.1,6.034]
[1758725535041,0.07234259,4208.4,4208.2,2.37631291]
[1758725535228,0.07234259,4208.4,4208.3,6.43325644]
[1758725535438,0.18664259,4208.4,4208.3,6.43325644]
[1758725535680,0.0041398,4209.0,4208.4,2.37619998]
[1758725535861,0.0041398,4209.0,4208.8,28.20141031]
[1758725536063,0.0041398,4209.0,4208.8,32.26341031]
[1758725536372,0.0041398,4209.0,4208.8,32.95141031]
[1758725536735,0.02,4209.9,4209.1,0.792]
[1758725536926,0.02,4209.9,4208.9,3.0]
[1758725536927,0.02,4209.9,4209.5,3.0]
[1758725537130,0.02,4209.9,4209.4,25.03343617]
[1758725537131,0.4526,4209.8,4209.6,6.046]
[1758725537389,0.02,4209.9,4208.8,25.03343617]
[1758725537390,0.4526,4209.7,4208.8,25.03343617]
[1758725537547,0.5669,4209.6,4209.1,6.186]
[1758725537876,0.5669,4209.6,4209.2,4.08501599]
[1758725537877,0.4526,4209.5,4209.2,4.08501599]
[1758725538030,0.4526,4209.4,4209.2,4.069]
[1758725538233,0.1143,4209.6,4208.9,3.0]
[1758725538433,0.1143,4209.6,4208.7,2.37601771]
[1758725538434,0.4526,4209.3,4209.0,1.979]
[1758725538741,0.4526,4209.3,4208.6,6.185]
[1758725538742,0.5669,4209.2,4209.1,6.048]
[1758725538961,2.37584975,4209.1,4207.5,0.2316]
[1758725539159,2.37593121,4208.9,4207.6,27.86268467]
[1758725539352,0.4526,4209.3,4208.3,2.37625567]
[1758725539552,0.1143,4209.2,4208.4,4.0850247]
[1758725539747,0.5669,4209.7,4208.7,2.37600528]
[1758725539963,0.02,4209.9,4208.8,4.069]
[1758725539964,0.4526,4209.6,4208.8,4.069]
[1758725540193,0.4526,4209.7,4208.9,6.44491444]
[1758725540491,0.4526,4209.7,4208.9,4.069]
[1758725540650,0.02,4209.9,4209.0,4.071]
[1758725540850,0.5669,4209.6,4209.1,1.979]
[1758725541047,0.5669,4209.5,4209.2,4.071]
[1758725541285,0.5669,4209.4,4209.2,4.071]
[1758725541488,0.5669,4209.4,4208.4,3.0]
[1758725541489,0.5669,4209.3,4208.3,3.47372769]
[1758725541656,0.5669,4209.2,4208.3,3.47372769]
[1758725541857,0.5669,4209.2,4208.5,3.0]
[1758725542058,0.2395242,4209.8,4208.6,4.07]
[1758725542293,0.02,4209.9,4209.4,25.03343617]
[1758725542493,0.02,4209.9,4209.5,6.06501175]
[1758725542677,0.02,4209.9,4209.2,0.792]
[1758725542856,0.02,4209.9,4209.8,0.1184]
[1758725543061,0.02,4209.9,4209.8,7.05342889]
[1758725543304,0.02,4209.9,4209.8,7.25580975]
[1758725543624,0.02,4209.9,4209.8,10.25580975]
[1758725544978,0.02,4209.9,4209.8,11.04780975]
[1758725545293,0.02,4209.9,4209.8,6.97380975]
[1758725545462,0.02,4209.9,4209.8,19.21480975]
[1758725545668,0.02,4209.9,4209.8,19.69973787]
[1758725545893,0.02,4210.9,4209.9,6.16735333]
[1758725546092,0.02,4210.9,4210.8,27.4082818]
[1758725546291,0.02,4210.9,4210.8,8.54924563]
[1758725546517,0.02,4210.9,4210.8,37.2706818]
[1758725546667,0.02,4210.9,4210.8,38.0626818]
[1758725547803,0.02,4210.9,4210.8,8.2794]
[1758725547987,0.02,4210.9,4210.8,12.3574]
[1758725548190,0.02,4210.9,4210.8,0.1184]
[1758725548565,0.02,4210.9,4210.8,6.1754]
[1758725548908,0.02,4210.9,4210.8,8.66344563]
[1758725549066,0.02,4210.9,4210.8,4.3096]
[1758725549266,0.02,4210.9,4210.8,14.84544563]
[1758725549467,0.02,4210.9,4210.8,42.8788818]
[1758725549666,0.02,4210.9,4210.8,43.3352818]
[1758725549909,0.02,4210.9,4210.8,44.1272818]
[1758725550787,0.02,4210.9,4210.8,19.09384563]
[1758725551307,0.02,4210.9,4210.8,6.39844563]
[1758725551509,0.02,4210.9,4210.8,18.64144563]
[1758725551717,0.02,4210.9,4209.8,0.48492812]
[1758725551925,0.02,4210.9,4210.2,2.37517388]
[1758725552087,0.02,4210.9,4210.3,6.47412039]
[1758725552287,0.02,4210.9,4210.5,2.37496814]
[1758725552597,0.02,4210.9,4210.8,3.16684563]
[1758725552804,0.02,4210.9,4210.8,12.22984563]
[1758725553101,0.02,4210.9,4210.8,12.91784563]
[1758725553808,0.02,4210.9,4210.8,4.48]
[1758725554057,0.02,4210.9,4210.8,4.0236]
[1758725554339,0.02,4210.9,4210.8,19.09984563]
[1758725556210,0.02,4210.9,4210.8,16.725]
[1758725556512,0.02,4210.9,4210.8,8.1066]
[1758725556717,0.02,4210.9,4210.8,19.09684563]
[1758725557239,0.02,4210.9,4210.8,16.722]
[1758725557740,0.02,4210.9,4210.8,19.09684563]
[1758725557954,0.02,4210.9,4210.8,10.93684563]
[1758725558107,0.02,4210.9,4210.8,19.09584563]
[1758725558655,0.02,4211.9,4211.0,0.792]
[1758725558806,0.02,4211.9,4211.5,0.792]
[1758725559001,0.02,4211.9,4211.8,0.1184]
[1758725559343,0.0192,4211.9,4211.8,4.1984]
[1758725560140,0.0192,4211.9,4211.8,4.9904]
[1758725560438,0.0192,4211.9,4211.8,5.222]
[1758725561302,0.0192,4211.9,4211.8,8.1036]
[1758725561504,0.0192,4211.9,4211.8,4.077]
[1758725561704,0.4712,4211.9,4211.8,8.157]
[1758725561938,0.4712,4211.9,4211.8,12.234]
[1758725561939,0.0192,4211.9,4211.8,12.234]
[1758725562125,0.452,4211.9,4211.8,6.18]
[1758725562300,0.5355,4211.9,4210.1,0.2319]
[1758725562503,0.1143,4211.8,4210.4,25.03343617]
[1758725562804,0.1143,4211.8,4210.6,3.0]
[1758725562805,0.1143,4211.7,4210.6,3.0]
[1758725563008,2.3744509,4211.5,4210.7,1.977]
[1758725563341,0.64060659,4212.7,4211.0,25.03343617]
[1758725563508,2.37439102,4211.7,4210.3,0.2319]
[1758725563708,2.37393005,4212.5,4210.3,0.2319]
[1758725563709,0.1143,4211.6,4210.5,3.0]
[1758725563904,0.1143,4211.6,4210.6,3.21999315]
[1758725564145,0.1143,4211.6,4210.6,3.204]
[1758725564329,2.82617478,4212.0,4210.7,12.25199225]
[1758725564506,0.5663,4211.9,4210.9,3.0]
[1758725564706,0.5663,4211.9,4211.1,3.0]
[1758725564927,0.5663,4211.9,4211.2,4.079]
[1758725565570,0.452,4211.8,4211.3,4.079]
[1758725565739,0.5663,4211.7,4211.4,6.006]
[1758725566061,2.48845903,4212.1,4211.5,6.055]
[1758725566368,0.5663,4212.0,4211.6,6.055]
[1758725566572,0.5663,4212.0,4211.7,6.055]
[1758725566723,0.452,4211.9,4211.8,1.977]
[1758725566930,0.452,4212.2,4211.8,1.977]
[1758725567176,0.452,4212.1,4211.9,4.09497842]
[1758725567327,0.452,4212.0,4211.9,4.079]
[1758725568836,0.5663,4212.0,4210.9,0.4341]
[1758725569038,0.53929684,4212.7,4211.1,3.0]
[1758725569265,0.02,4212.9,4211.0,15.4649]
[1758725569266,0.452,4212.6,4211.3,3.792]
[1758725569470,0.02,4212.9,4211.3,3.792]
[1758725569471,0.5663,4212.5,4211.4,4.076]
[1758725570086,0.5663,4212.5,4211.3,3.0]
[1758725570284,0.5663,4212.5,4211.5,12.233]
[1758725570944,2.37394359,4212.4,4211.6,4.075]
[1758725571142,0.59597499,4212.3,4212.2,0.1184]
[1758725571355,3.4795996,4212.3,4212.2,6.1704]
[1758725571766,3.4795996,4212.3,4212.2,6.1694]
[1758725571976,3.4795996,4212.3,4212.2,6.051]
[1758725573582,1.10559965,4212.3,4212.2,1.977]
[1758725573782,2.3744509,4211.5,4211.4,0.1184]
[1758725573993,3.45267412,4211.5,4211.4,5.318]
[1758725574208,1.07822322,4211.5,4211.1,0.1184]
[1758725574497,3.01445789,4211.3,4211.2,6.049]
[1758725574705,3.45278689,4211.3,4211.2,6.049]
[1758725574903,0.1184,4211.2,4210.5,0.1184]
[1758725575188,2.37480646,4210.9,4210.6,6.049]
[1758725575507,3.45307625,4210.8,4210.7,6.05]
[1758725575668,2.37518407,4210.2,4210.1,0.02]
[1758725576011,2.88710729,4210.2,4210.1,0.02]
[1758725576155,1.55712808,4210.2,4210.1,6.071]
[1758725576464,0.54161231,4210.3,4210.1,6.071]
[1758725576665,0.51192322,4210.2,4210.1,6.071]
[1758725576868,0.51192322,4210.4,4210.1,6.071]
[1758725577091,2.37518407,4210.2,4210.1,6.071]
[1758725577291,2.94148407,4210.2,4210.1,4.094]
[1758725577476,2.94148407,4210.2,4210.1,6.071]
[1758725577679,2.94148407,4210.2,4210.1,0.02]
[1758725577880,3.98738022,4210.2,4210.1,6.07]
[1758725578085,3.47611039,4210.2,4210.1,6.07]
[1758725578458,3.36181039,4210.2,4210.1,6.07]
[1758725578993,3.47611039,4210.2,4210.1,6.07]
[1758725579290,3.36181039,4210.2,4210.1,6.07]
[1758725579666,2.82718407,4210.2,4210.1,0.02]
[1758725579896,2.37513377,4210.3,4210.1,6.071]
[1758725580081,0.02968627,4210.7,4210.1,6.071]
[1758725580285,2.37518407,4210.2,4210.1,6.071]
[1758725580461,2.93238407,4210.2,4210.1,0.02]
[1758725580660,3.49282181,4210.2,4210.1,4.091]
[1758725580869,4.00345273,4210.2,4209.8,0.002]
[1758725581173,2.37574836,4209.2,4209.1,1e-08]
[1758725581371,2.40544521,4209.2,4209.1,1e-08]
[1758725581669,2.96264521,4209.2,4209.1,1e-08]
[1758725581868,3.0541919,4209.2,4209.1,1e-08]
[1758725582057,3.6113919,4209.2,4209.1,1e-08]
[1758725582867,3.4970919,4209.2,4209.1,1e-08]
[1758725583099,1.23564354,4209.2,4209.1,2.788]
[1758725583259,2.96264521,4209.2,4209.1,2.788]
[1758725584595,2.37574836,4209.2,4209.1,2.788]
[1758725584958,2.84834521,4209.2,4209.1,2.788]
[1758725585391,2.96674521,4209.2,4209.1,2.788]
[1758725585662,2.96674521,4209.2,4209.1,2.79]
[1758725585663,2.49414836,4209.2,4209.1,2.79]
[1758725585872,2.98113284,4209.2,4209.1,2.79]
[1758725586100,3.01082969,4209.2,4209.1,2.79]
[1758725586398,2.37563578,4209.4,4209.1,3.0169]
[1758725586571,2.37563984,4209.4,4209.2,0.2269]
[1758725586905,2.37563984,4209.4,4209.3,0.6721]
[1758725586906,2.37563548,4209.4,4209.3,0.6721]
[1758725587284,2.37563548,4209.4,4209.3,0.2269]
[1758725587497,2.37574836,4209.2,4209.1,0.1204]
[1758725587717,2.37574836,4209.2,4209.1,6.1714]
[1758725587935,2.61629267,4209.2,4209.1,0.1204]
[1758725588085,2.61629267,4209.2,4209.1,0.61]
[1758725588426,3.17349267,4209.2,4209.1,6.052]
[1758725588630,2.61629267,4209.2,4209.1,4.074]
[1758725589119,3.05919267,4209.2,4209.1,4.074]
[1758725589319,3.17349267,4209.2,4209.1,4.074]
[1758725589629,2.37631291,4208.2,4207.6,0.2269]
[1758725589784,0.79774431,4209.2,4208.1,6.072]
[1758725589785,0.0297032,4208.3,4208.1,6.072]
[1758725589985,4.75172248,4209.0,4208.1,6.072]
[1758725590224,0.56356097,4208.9,4208.2,0.2269]
[1758725590530,0.02969897,4208.9,4208.1,6.072]
[1758725590842,0.4429,4209.4,4208.2,0.2269]
[1758725591140,2.37575292,4209.2,4208.2,0.6721]
[1758725591445,2.37563775,4209.4,4208.3,0.2269]
[1758725591618,2.37580559,4209.1,4208.4,0.01602418]
[1758725591839,2.37563775,4209.4,4208.5,4.073]
[1758725591840,2.40539546,4209.3,4208.5,4.073]
[1758725591984,2.37559623,4209.5,4208.6,0.24782291]
[1758725592186,0.02969544,4209.4,4208.7,0.466]
[1758725592427,0.02969544,4209.4,4208.8,0.0160206]
[1758725592592,0.02969262,4209.8,4208.9,2.2098]
[1758725592794,0.02969262,4209.8,4209.0,4.072]
[1758725592999,0.02969262,4209.8,4209.1,0.01601585]
[1758725593223,0.1143,4210.4,4209.1,0.01601585]
[1758725593224,2.37529063,4210.1,4209.1,0.01601585]
[1758725593390,2.40499376,4210.0,4209.2,0.6978]
[1758725593593,2.37535684,4209.9,4209.3,0.24781303]
[1758725593794,2.37544922,4209.8,4209.3,0.01601303]
[1758725594035,0.47802323,4209.9,4209.3,0.01601303]
[1758725594240,2.37536941,4209.9,4209.4,0.6978]
[1758725594442,2.37552261,4209.6,4209.5,4.074]
[1758725594605,2.37547931,4209.7,4209.5,4.074]
[1758725594943,2.37547931,4209.7,4208.7,0.2318]
[1758725594944,2.37567869,4209.4,4208.7,0.2318]
[1758725595144,2.37570114,4209.3,4208.8,6.053]
[1758725595339,2.37564523,4209.4,4208.8,6.053]
[1758725595639,0.02969614,4209.3,4208.9,6.053]
[1758725595938,0.02969473,4209.5,4208.9,6.053]
[1758725596140,0.4297,4209.2,4209.0,1.978]
[1758725596339,2.94950236,4209.1,4209.0,1.978]
[1758725596511,2.37586124,4209.0,4208.8,4.075]
[1758725596717,2.37597414,4208.8,4208.7,4.075]
[1758725597024,2.37619998,4208.4,4208.3,1.978]
[1758725597228,2.40590247,4208.4,4208.3,1.978]
[1758725597397,2.83560247,4208.4,4208.3,6.054]
[1758725597599,2.37619998,4208.4,4208.3,6.054]
[1758725598035,2.37631291,4208.2,4208.1,0.022]
[1758725598241,2.37631291,4208.2,4208.1,4.991]
[1758725599219,2.37619998,4208.4,4208.1,4.991]
[1758725599439,2.37631291,4208.2,4208.1,4.991]
[1758725599814,2.37619998,4208.4,4208.1,4.991]
[1758725600016,0.1184,4208.5,4208.1,5.2228]
[1758725600214,2.37631291,4208.2,4208.1,4.991]
[1758725600838,0.544,4208.9,4208.1,4.991]
[1758725600839,2.37586124,4209.0,4208.1,5.6888]
[1758725601011,2.37625799,4208.3,4208.1,5.8072]
[1758725601212,2.37631291,4208.2,4208.1,5.1094]
[1758725601413,2.37631291,4208.2,4208.1,4.095]
[1758725601601,0.0297032,4208.3,4208.1,6.074]
[1758725601803,2.37630509,4208.3,4208.2,0.2318]
[1758725602241,2.37619998,4208.4,4208.1,6.1924]
[1758725602442,2.81490173,4208.9,4208.2,0.71383113]
[1758725602443,0.1184,4208.9,4208.2,0.71383113]
[1758725602768,0.85135873,4210.0,4208.3,0.2318]
[1758725602769,2.37607965,4208.7,4208.3,0.2318]
[1758725602968,2.37607965,4208.7,4208.2,0.466]
[1758725602969,2.37608705,4208.6,4208.5,0.1184]
[1758725603175,0.14809685,4209.2,4208.5,4.1964]
[1758725603346,0.1184,4209.2,4208.6,0.48202342]
[1758725603545,0.1184,4209.7,4209.0,0.1184]
[1758725603860,2.37558337,4209.5,4209.1,6.7548]
[1758725604031,2.37529788,4210.0,4209.2,0.6978]
[1758725604234,2.37547119,4209.7,4209.4,0.1184]
[1758725604433,0.02969191,4209.9,4209.5,4.079]
[1758725604633,0.28854134,4210.0,4209.6,0.6978]
[1758725604833,2.37534259,4210.0,4209.7,0.8162]
[1758725605063,2.37519261,4210.2,4209.8,0.2318]
[1758725605064,2.37536132,4209.9,4209.8,0.2318]
[1758725605233,2.37540975,4209.8,4209.7,0.1184]
[1758725605436,2.37540975,4209.8,4209.7,6.057]
[1758725605977,0.1184,4210.0,4209.7,6.2888]
[1758725606136,0.02,4210.9,4209.8,0.2318]
[1758725606137,0.1184,4210.3,4209.8,0.2318]
[1758725606332,0.0296898,4210.2,4209.8,0.2318]
[1758725606657,0.0296898,4210.2,4209.9,0.2318]
[1758725607061,2.37536788,4209.9,4209.6,0.1184]
[1758725607252,2.37546618,4209.7,4209.1,0.2318]
[1758725607434,2.40512416,4209.8,4209.4,0.1184]
[1758725607635,0.02969262,4209.8,4209.5,1.979]
[1758725607865,0.02969262,4209.8,4209.6,4.075]
[1758725608066,0.02969121,4210.0,4209.6,4.075]
[1758725608241,2.37546618,4209.7,4209.6,4.075]
[1758725608987,2.37557904,4209.5,4209.1,0.2318]
[1758725609136,2.37569403,4209.3,4209.2,1.978]
[1758725609337,2.37569192,4209.3,4209.2,3.301]
[1758725610181,2.80539192,4209.3,4209.2,3.301]
[1758725610384,2.91969192,4209.3,4209.2,3.301]
[1758725610589,3.51519468,4209.3,4209.2,3.301]
[1758725611147,2.37597414,4208.8,4208.3,0.002]
[1758725611384,0.02970038,4208.7,4208.4,6.1694]
[1758725611993,2.37619998,4208.4,4208.3,0.002]
[1758725612189,2.92707686,4208.4,4208.3,6.052]
[1758725613275,0.02970249,4208.4,4208.3,6.2838]
[1758725613452,0.1184,4209.0,4208.3,6.4022]
[1758725613652,2.40562289,4208.9,4208.3,6.4022]
[1758725613906,0.02969897,4208.9,4208.3,6.4022]
[1758725614191,0.1184,4209.0,4208.4,0.71382676]
[1758725614406,0.14809614,4209.3,4208.6,0.1184]
[1758725614549,0.14809614,4209.3,4208.7,6.051]
[1758725614975,0.14809403,4209.6,4208.9,0.1184]
[1758725615191,2.37557904,4209.5,4208.9,0.1184]
[1758725615369,0.02969544,4209.4,4208.9,0.1184]
[1758725615553,2.37580642,4209.1,4208.9,0.1184]
[1758725616090,2.37593706,4208.9,4208.4,0.2318]
[1758725616261,2.37597473,4208.8,4208.6,0.1184]
[1758725616467,2.37597473,4208.8,4208.5,6.051]
[1758725616468,0.02970038,4208.7,4208.5,6.051]
[1758725616701,0.5078595,4208.7,4208.6,4.071]
[1758725616886,0.59655912,4208.7,4208.6,6.05]
[1758725617086,2.37619998,4208.4,4208.3,0.002]
[1758725617260,2.37619998,4208.4,4208.3,6.052]
[1758725617794,2.37619998,4208.4,4208.3,0.002]
[1758725618000,0.53785479,4208.4,4208.3,6.051]
[1758725618298,2.83560247,4208.4,4208.3,6.051]
[1758725618485,0.02970249,4208.4,4208.3,6.051]
[1758725618687,0.1184,4208.5,4208.3,6.051]
[1758725618862,2.37619998,4208.4,4208.3,6.051]
[1758725619069,2.86624006,4208.4,4208.3,6.051]
[1758725619501,0.49004008,4208.4,4208.3,6.051]
[1758725619807,2.37619998,4208.4,4208.3,6.051]
[1758725620212,0.14810179,4208.5,4208.3,6.051]
[1758725620363,2.37619998,4208.4,4208.3,6.2828]
[1758725620559,0.1184,4208.5,4208.3,6.2828]
[1758725620813,2.37607869,4208.7,4208.4,0.2318]
[1758725620964,2.37607869,4208.7,4208.5,0.2318]
[1758725621270,2.49428719,4209.0,4208.6,4.7658]
[1758725621477,2.40537572,4209.4,4208.7,0.6978]
[1758725621703,2.37590708,4209.0,4208.5,0.2434]
[1758725621902,2.37601378,4208.8,4208.6,6.048]
[1758725622101,0.02969897,4208.9,4208.6,6.2914]
[1758725622102,2.37592963,4208.9,4208.6,6.2914]
[1758725622299,0.02969967,4208.8,4208.3,0.002]
[1758725622521,0.02969614,4209.3,4208.4,6.048]
[1758725622815,2.37608705,4208.6,4208.5,6.048]
[1758725623386,2.37614351,4208.5,4208.3,0.002]
[1758725623647,2.40590247,4208.4,4208.3,0.002]
[1758725623922,2.85580247,4208.4,4208.3,2.392]
[1758725624390,2.85580247,4208.4,4208.3,0.002]
[1758725624580,2.85580247,4208.4,4208.3,0.257]
[1758725624780,3.43824505,4208.4,4208.3,2.236]
[1758725625419,2.98834505,4208.4,4208.3,2.236]
[1758725626502,2.95864256,4208.4,4208.3,2.236]
[1758725626711,2.98834505,4208.4,4208.3,2.236]
[1758725627219,2.95864256,4208.4,4208.3,2.236]
[1758725628323,2.98834505,4208.4,4208.3,2.236]
[1758725628626,2.95864256,4208.4,4208.3,0.002]
[1758725628824,2.98834505,4208.4,4208.3,0.002]
[1758725629130,3.43824505,4208.4,4208.3,3.59]
[1758725629336,3.43824505,4208.4,4208.3,0.002]
[1758725629627,3.55254505,4208.4,4208.3,0.002]
[1758725630012,2.37648233,4207.9,4207.8,1.981]
[1758725630327,2.97038835,4207.9,4207.8,0.002]
[1758725630888,2.85608835,4207.9,4207.8,0.002]
[1758725632200,2.97038835,4207.9,4207.8,0.002]
[1758725632401,0.1184,4207.8,4207.5,0.139]
[1758725632588,2.37665177,4207.6,4207.5,0.139]
[1758725632996,2.37687773,4207.2,4205.9,0.2434]
[1758725633199,2.4065887,4207.2,4207.1,6.064]
[1758725633431,2.9707887,4207.2,4207.1,0.02]
[1758725633635,2.9707887,4207.2,4207.1,0.356]
[1758725633905,3.50554772,4207.2,4207.1,0.356]
[1758725634205,3.50554772,4207.2,4207.1,0.02]
[1758725634823,2.37699072,4207.0,4206.5,1.979]
[1758725635006,2.37699072,4207.0,4206.5,4.065]
[1758725635007,2.37721675,4206.6,4206.5,4.065]
[1758725635231,2.40693195,4206.6,4206.5,4.065]
[1758725635537,2.88533552,4206.6,4206.5,4.065]
[1758725637958,0.0297152,4206.6,4206.5,4.065]
[1758725638110,0.1184,4206.6,4206.5,4.7604]
[1758725638536,0.1481152,4206.6,4206.5,4.065]
[1758725638707,0.1184,4206.6,4206.5,4.062]
[1758725638904,2.52533195,4206.6,4206.5,4.062]
[1758725639138,3.01558684,4206.6,4206.5,4.063]
[1758725639353,2.37744282,4206.2,4206.1,0.02]
[1758725639654,2.40716085,4206.2,4206.1,6.062]
[1758725640010,2.40716085,4206.2,4206.1,6.061]
[1758725640548,0.48881803,4206.2,4205.8,1.979]
[1758725640716,2.3776124,4205.9,4205.8,4.062]
[1758725640916,2.3776124,4205.9,4205.1,0.02]
[1758725640917,2.37778895,4205.6,4205.1,0.02]
[1758725641118,0.02972298,4205.5,4205.1,0.02]
[1758725641421,2.37797593,4205.3,4205.2,2.469]
[1758725641641,2.37800818,4205.2,4205.1,1.999]
[1758725641974,2.37800818,4205.2,4205.1,6.061]
[1758725642114,2.37800818,4205.2,4205.1,4.081]
[1758725642313,0.5734,4205.2,4205.1,0.02]
[1758725642544,2.95140818,4205.2,4205.1,0.02]
[1758725642703,2.37800818,4205.2,4205.1,0.02]
[1758725642909,0.02972439,4205.3,4205.1,0.02]
[1758725642910,2.4076915,4205.3,4205.1,0.6985]
[1758725643133,2.37800818,4205.2,4205.1,0.4654]
[1758725643320,0.02972439,4205.3,4205.1,0.4654]
[1758725643521,2.37800818,4205.2,4205.1,0.02]
[1758725643716,2.37800818,4205.2,4205.1,0.2531]
[1758725644124,0.02972439,4205.3,4205.1,0.2531]
[1758725644335,2.40762475,4205.4,4205.1,0.2531]
[1758725644506,2.37800818,4205.2,4205.1,0.02]
[1758725645022,0.02972368,4205.4,4205.1,0.02]
[1758725645411,0.4591,4206.9,4205.6,0.002]
[1758725645611,0.15075289,4206.8,4205.7,6.2741]
[1758725645811,0.15075289,4206.8,4205.8,0.6785]
[1758725646061,2.37720298,4206.7,4205.9,0.6785]
[1758725646259,0.0297152,4206.6,4206.0,0.6785]
[1758725646424,2.40659807,4207.2,4206.1,0.2331]
[1758725646626,0.02971097,4207.2,4206.2,4.063]
[1758725646829,0.02971097,4207.2,4206.3,0.69455434]
[1758725647311,2.3767817,4207.4,4206.4,0.2331]
[1758725647512,0.02971026,4207.3,4206.5,1.98]
[1758725647713,2.3771104,4206.8,4206.6,6.045]
[1758725647918,0.27035435,4207.3,4206.3,0.2331]
[1758725647919,0.0297145,4206.7,4206.3,0.2331]
[1758725648123,0.02971309,4206.9,4206.4,0.6785]
[1758725648318,0.02971309,4206.9,4206.5,6.7255]
[1758725648558,2.37715075,4206.8,4206.6,1.98]